Workbook

Sheet menu
G2: 7

Sheet 機種別円グラフ
D6: ６月 | E6: ７月 | F6: ８月 | G6: ９月 | H6: １０月 | I6: １１月 | J6: １２月 | K6: １月 | L6: ２月 | M6: ３月 | N6: ４月 | O6: ５月 | P6: 累計
C7: RE | D7: 520000 | E7: 1260000 | F7: 0 | G7: 0 | H7: 0 | I7: 0 | J7: 0 | K7: 0 | L7: 0 | M7: 0 | N7: 0 | O7: 0 | P7: =SUM(D7:O7) -> 1780000
C8: RN | D8: 350000 | E8: 320000 | F8: 0 | G8: 0 | H8: 0 | I8: 0 | J8: 0 | K8: 0 | L8: 0 | M8: 0 | N8: 0 | O8: 0 | P8: =SUM(D8:O8) -> 670000
C9: NR | D9: 1090600 | E9: 8399000 | F9: 0 | G9: 0 | H9: 0 | I9: 0 | J9: 0 | K9: 0 | L9: 0 | M9: 0 | N9: 0 | O9: 0 | P9: 9489600
C10: SP | D10: 120000 | E10: 5400000 | F10: 0 | G10: 0 | H10: 0 | I10: 0 | J10: 0 | K10: 0 | L10: 0 | M10: 0 | N10: 0 | O10: 0 | P10: 5520000
C11: QP | D11: 100000 | E11: 1090600 | F11: 0 | G11: 0 | H11: 0 | I11: 0 | J11: 0 | K11: 0 | L11: 0 | M11: 0 | N11: 0 | O11: 0 | P11: 1190600
C12: OK | D12: 3283000 | E12: 350000 | F12: 0 | G12: 0 | H12: 0 | I12: 0 | J12: 0 | K12: 0 | L12: 0 | M12: 0 | N12: 0 | O12: 0 | P12: 3633000
C13: VW | D13: 15532000 | E13: 150000 | F13: 0 | G13: 0 | H13: 0 | I13: 0 | J13: 0 | K13: 0 | L13: 0 | M13: 0 | N13: 0 | O13: 0 | P13: 15682000
C14: NK | D14: 50000 | E14: 640000 | F14: 0 | G14: 0 | H14: 0 | I14: 0 | J14: 0 | K14: 0 | L14: 0 | M14: 0 | N14: 0 | O14: 0 | P14: 690000
C15: FV | D15: 3414550 | E15: 18192000 | F15: 0 | G15: 0 | H15: 0 | I15: 0 | J15: 0 | K15: 0 | L15: 0 | M15: 0 | N15: 0 | O15: 0 | P15: 21606550
C16: PT | D16: 361000 | E16: 1043088 | F16: 0 | G16: 0 | H16: 0 | I16: 0 | J16: 0 | K16: 0 | L16: 0 | M16: 0 | N16: 0 | O16: 0 | P16: 1404088
C17: CV | D17: 460000 | E17: 361000 | F17: 0 | G17: 0 | H17: 0 | I17: 0 | J17: 0 | K17: 0 | L17: 0 | M17: 0 | N17: 0 | O17: 0 | P17: 821000
C18: 修理部品 | D18: 168000 | E18: 3508350 | F18: 0 | G18: 0 | H18: 0 | I18: 0 | J18: 0 | K18: 0 | L18: 0 | M18: 0 | N18: 0 | O18: 0 | P18: 3676350
C19: 合計 | D19: =SUM(D7:D18) -> 25449150 | E19: 40714038 | F19: 0 | G19: 0 | H19: 0 | I19: 0 | J19: 0 | K19: 0 | L19: 0 | M19: 0 | N19: 0 | O19: 0 | P19: 66163188
D21: ７月 | P21: 累計
C22: RE | D22: 1260000 | P22: 1780000
C23: RN | D23: 320000 | P23: 670000
C24: NR | D24: 8399000 | P24: 9489600
C25: SP | D25: 5400000 | P25: 5520000
C26: QP | D26: 1090600 | P26: 1190600
C27: OK | D27: 350000 | P27: 3633000
C28: VW | D28: 150000 | P28: 15682000
C29: NK | D29: 640000 | P29: 690000
C30: FV | D30: 18192000 | P30: 21606550
C31: PT | D31: 1043088 | P31: 1404088
C32: CV | D32: 361000 | P32: 821000
C33: 修理部品 | D33: 3508350 | P33: 3676350

Sheet 売上高表
B4: 2018-08-31 | C4: 7 | D4: 月切 | E4: 売 上 高 表
C5: 201 | D5: 301 | E5: 302 | F5: 401 | G5: 402 | H5: 199 | I5: 合計
B6: RE | C6: 0 | D6: 0 | E6: 0 | F6: 0 | G6: 1260000 | H6: 0 | I6: =SUM(C6:H6) -> 1260000
B7: RN | C7: 0 | D7: 0 | E7: 0 | F7: 320000 | G7: 0 | H7: 0 | I7: =SUM(C7:H7) -> 320000
B8: NR | C8: 0 | D8: 0 | E8: 8399000 | F8: 0 | G8: 0 | H8: 0 | I8: 8399000
B9: SP | C9: 0 | D9: 5400000 | E9: 0 | F9: 0 | G9: 0 | H9: 0 | I9: 5400000
B10: QP | C10: 0 | D10: 0 | E10: 0 | F10: 0 | G10: 1090600 | H10: 0 | I10: 1090600
B11: OK | C11: 350000 | D11: 0 | E11: 0 | F11: 0 | G11: 0 | H11: 0 | I11: 350000
B12: VW | C12: 0 | D12: 0 | E12: 0 | F12: 0 | G12: 0 | H12: 150000 | I12: 150000
B13: NK | C13: 640000 | D13: 0 | E13: 0 | F13: 0 | G13: 0 | H13: 0 | I13: 640000
B14: FV | C14: 0 | D14: 18192000 | E14: 0 | F14: 0 | G14: 0 | H14: 0 | I14: 18192000
B15: PT | C15: 0 | D15: 0 | E15: 378000 | F15: 665088 | G15: 0 | H15: 0 | I15: 1043088
B16: 修理部品 | C16: 0 | D16: 56500 | E16: 0 | F16: 0 | G16: 0 | H16: 3451850 | I16: 3508350
B17: 内作計 | C17: =SUM(C6:C16) -> 990000 | D17: =SUM(D6:D16) -> 23648500 | E17: 8777000 | F17: 985088 | G17: 2350600 | H17: 3601850 | I17: 40353038 | J17: =SUM(I6:I16) -> 40353038
B18: CV | C18: 361000 | D18: 0 | E18: 0 | F18: 0 | G18: 0 | H18: 0 | I18: 361000
C19: 0 | D19: 0 | E19: 0 | F19: 0 | G19: 0 | H19: 0 | I19: 0
C20: 0 | D20: 0 | E20: 0 | F20: 0 | G20: 0 | H20: 0 | I20: 0
I21: 0
B22: 外作計 | C22: 361000 | D22: 0 | E22: 0 | F22: 0 | G22: 0 | H22: 0 | I22: 361000
I23: 0
B24: 総合計 | C24: =(C17+C22) -> 1351000 | D24: =(D17+D22) -> 23648500 | E24: 8777000 | F24: 985088 | G24: 2350600 | H24: 3601850 | I24: 40714038 | J24: =I17+I22 -> 40714038
